Workbook

Sheet Sheet1
A1: Stock | B1: Ticker | C1: Trade Date | D1: Buy/Sell | E1: Price | F1: Fees | G1: Quantity | H1: Total Cost | I1: Current Price | J1: Gross Current Value | K1: Today's Return | L1: Total Return | M1: Market Value | N1: Open | O1: High | P1: Low | Q1: Previous Close
B2: =_FV(A2,"Ticker symbol",TRUE) -> BX | C2: 2019-08-27 | D2: B | E2: 49.013 | F2: 6.95 | G2: 1 | H2: =E2*G2 -> 49.013 | I2: =_FV(A2,"Price") -> 62.39 | J2: =G2*I2 -> 62.39 | K2: =IF(D2="B",(I2-N2)*G2,IF(D2="S",0,(I2-N2)*G2)) -> -0.44 | L2: =(I2-E2)*G2 -> 13.377 | M2: =I2*G2 -> 62.39 | N2: =_FV(A2,"Open") -> 62.83 | O2: =_FV(A2,"High") -> 62.83 | P2: =_FV(A2,"Low") -> 61.29 | Q2: =_FV(A2,"Previous close",TRUE) -> 62.45
B3: =_FV(A3,"Ticker symbol",TRUE) -> BX | C3: 2019-09-11 | D3: S | E3: 50.65 | F3: 6.95 | G3: 1 | H3: =E3*G3 -> 50.65 | I3: =_FV(A3,"Price") -> 62.39 | J3: =G3*I3 -> 62.39 | K3: =IF(D3="B",(I3-N3)*G3,IF(D3="S",0,(I3-N3)*G3)) -> 0 | L3: =(I3-E3)*G3 -> 11.74 | M3: =I3*G3 -> 62.39 | N3: =_FV(A3,"Open") -> 62.83 | O3: =_FV(A3,"High") -> 62.83 | P3: =_FV(A3,"Low") -> 61.29 | Q3: =_FV(A3,"Previous close",TRUE) -> 62.45
B4: =_FV(A4,"Ticker symbol",TRUE) -> SAND | C4: 2020-07-14 | D4: B | E4: 9.4 | F4: 0 | G4: 25 | H4: =E4*G4 -> 235 | I4: =_FV(A4,"Price") -> 7.28 | J4: =G4*I4 -> 182 | K4: =(I4-N4)*G4 -> -5.5 | L4: =(I4-E4)*G4 -> -53 | M4: =I4*G4 -> 182 | N4: =_FV(A4,"Open") -> 7.5 | O4: =_FV(A4,"High") -> 7.52 | P4: =_FV(A4,"Low") -> 7.16 | Q4: =_FV(A4,"Previous close",TRUE) -> 7.61
B5: =_FV(A5,"Ticker symbol",TRUE) -> BABA | C5: 2020-07-15 | D5: B | E5: 264.35 | F5: 0 | G5: 1 | H5: =E5*G5 -> 264.35 | I5: =_FV(A5,"Price") -> 263.8 | J5: 263.8 | K5: =(I5-N5)*G5 -> -3.76 | L5: =(I5-E5)*G5 -> -0.55 | M5: =I5*G5 -> 263.8 | N5: =_FV(A5,"Open") -> 267.56 | O5: =_FV(A5,"High") -> 267.91 | P5: =_FV(A5,"Low") -> 263.1 | Q5: =_FV(A5,"Previous close",TRUE) -> 266.09
B6: =_FV(A6,"Ticker symbol",TRUE) -> BEAM | C6: 2020-11-25 | D6: B | E6: 41.48 | F6: 0 | G6: 3 | H6: =E6*G6 -> 124.44 | I6: =_FV(A6,"Price") -> 72.84 | J6: 218.52 | K6: =(I6-N6)*G6 -> 6.63 | L6: =(I6-E6)*G6 -> 94.08 | M6: =I6*G6 -> 218.52 | N6: =_FV(A6,"Open") -> 70.63 | O6: =_FV(A6,"High") -> 74.58 | P6: =_FV(A6,"Low") -> 68.89 | Q6: =_FV(A6,"Previous close",TRUE) -> 75.26
B7: =_FV(A7,"Ticker symbol",TRUE) -> BEAM | C7: 2020-12-07 | D7: B | E7: 68.21 | F7: 0 | G7: 4 | H7: =E7*G7 -> 272.84 | I7: =_FV(A7,"Price") -> 72.84 | J7: 291.36 | K7: 8.84 | L7: 18.52 | M7: 291.36 | N7: =_FV(A7,"Open") -> 70.63 | O7: =_FV(A7,"High") -> 74.58 | P7: =_FV(A7,"Low") -> 68.89 | Q7: =_FV(A7,"Previous close",TRUE) -> 75.26
B8: =_FV(A8,"Ticker symbol",TRUE) -> SAND | C8: 2020-08-17 | D8: S | E8: 9.22 | F8: 0 | G8: 25 | H8: =E8*G8 -> 230.5 | I8: =_FV(A8,"Price") -> 7.28 | J8: =G8*I8 -> 182 | K8: =(I8-N8)*G8 -> -5.5 | L8: =(I8-E8)*G8 -> -48.5 | M8: =I8*G8 -> 182 | N8: =_FV(A8,"Open") -> 7.5 | O8: =_FV(A8,"High") -> 7.52 | P8: =_FV(A8,"Low") -> 7.16 | Q8: =_FV(A8,"Previous close",TRUE) -> 7.61
A17: Totals: | G17: =SUM(G2:G16) -> 60 | K17: =SUM(K2:K16) -> 0.27 | L17: =SUM(L2:L16) -> 35.667 | M17: =SUM(M2:M16) -> 1262.46
